fUST/lending_fUST_20240630
["ID","MTS","AMOUNT","RATE_DAILY","PERIOD"]
[330711645,1719723042876,-500.0,0.00016438,2]
[330711646,1719723042885,-490.34845535,0.00016438,2]
[330711647,1719723042895,-500.0,0.00016438,2]
[330711648,1719723042905,-1763.97,0.00016438,2]
[330711650,1719723042916,-506.19227959,0.00016438,2]
[330711653,1719723042927,-613.12,0.00016438,2]
[330711656,1719723042938,-870.95,0.00016438,2]
[330711660,1719723042948,-1272.77,0.00016438,2]
[330711663,1719723042959,-1226.32,0.00016438,2]
[330711666,1719723042968,-1338.55,0.00016438,2]
[330711668,1719723042977,-500.0,0.00016438,2]
[330711671,1719723042986,-500.0,0.00016438,2]
[330711672,1719723042995,-513.74471728,0.00016438,2]
[330711674,1719723043004,-526.18308385,0.00016438,2]
[330711675,1719723043013,-550.43610066,0.00016438,2]
[330711676,1719723043022,-771.69,0.00016438,2]
[330711677,1719723043032,-500.0,0.00016438,2]
[330711678,1719723043041,-500.0,0.00016438,2]
[330711679,1719723043051,-594.27,0.00016438,2]
[330711680,1719723043061,-900.33,0.00016438,2]
[330711681,1719723043070,-500.0,0.00016438,2]
[330711682,1719723043080,-500.0,0.00016438,2]
[330711683,1719723043090,-157.85969961,0.00016438,2]
[330711684,1719723043099,-500.0,0.00016438,2]
[330711685,1719723043110,-500.0,0.00016438,2]
[330711686,1719723043120,-500.0,0.00016438,2]
[330711687,1719723043130,-2073.23,0.00016438,2]
[330711689,1719723043139,-1319.19,0.00016438,2]
[330711691,1719723043148,-500.0,0.00016438,2]
[330711692,1719723043158,-500.0,0.00016438,2]
[330711694,1719723043167,-500.0,0.00016438,2]
[330711696,1719723043182,-1865.16,0.00016438,2]
[330711698,1719723043192,-500.0,0.00016438,2]
[330711699,1719723043202,-500.0,0.00016438,2]
[330711700,1719723043212,-1385.73,0.00016438,2]
[330711702,1719723043221,-501.7334312,0.00016438,2]
[330711703,1719723043231,-500.0,0.00016438,2]
[330711705,1719723043240,-1011.71586117,0.00016438,2]
[330711708,1719723043272,-722.47413883,0.00016438,2]
[330711710,1719723043281,-3825.14369366,0.00016438,2]
[330711720,1719723044378,-570.499992,0.00016438,2]
[330711721,1719723044390,-280.000005,0.00016438,2]
[330711740,1719723046777,-302.4326819,0.00016438,2]
[330711741,1719723046909,-1023.67334161,0.00016438,2]
[330711742,1719723046922,-514.55065191,0.00016438,2]
[330711743,1719723046934,-1229.33739131,0.00016438,2]
[330711744,1719723046946,-3544.52224261,0.00016438,2]
[330711745,1719723046955,-5152.8,0.00016438,2]
[330711746,1719723046964,-275.56456711,0.00016438,2]
[330711747,1719723046973,-2595.49,0.00016438,2]
[330711748,1719723046982,-403.17541655,0.00016438,2]
[330711755,1719723969727,250.0,0.00014979,2]
[330711760,1719724121067,-662.68943056,0.00015059,2]
[330711761,1719724121118,-662.68943056,0.00015059,2]
[330711762,1719724121201,-558.18287146,0.00015059,2]
[330711764,1719724145965,-300.0,0.00015058,2]
[330711765,1719724145996,-300.0,0.00015058,2]
[330711766,1719724146029,-100.36066521,0.00015059,2]
[330711767,1719724146066,-700.36066521,0.00015059,2]
[330711768,1719724146137,-472.32835576,0.00015059,2]
[330711771,1719724170990,-737.82165893,0.00015059,2]
[330711772,1719724171045,-737.82165893,0.00015059,2]
[330711773,1719724171268,-636.75011131,0.00015059,2]
[330711774,1719724196175,-780.06952751,0.00015059,2]
[330711775,1719724196219,-780.06952751,0.00015059,2]
[330711810,1719724232741,-2516.51546621,0.00015059,2]
[330711835,1719724238699,-15554.34063084,0.00015059,2]
[330711837,1719724238709,-509.9900595,0.00015078,2]
[330711839,1719724238718,-290.781891,0.00015106,2]
[330711841,1719724238727,-170.53092788,0.00015995,2]
[330711843,1719724238737,-190.78309208,0.00016335,2]
[330711845,1719724238747,-153.0,0.000164,2]
[330711847,1719724238756,-308.3338013,0.000164,2]
[330711849,1719724238765,-206.0005558,0.000164,2]
[330711851,1719724238774,-153.0,0.000164,2]
[330711852,1719724238783,-306.313378,0.000164,2]
[330711854,1719724238794,-153.0,0.000164,2]
[330711856,1719724238803,-153.0,0.000164,2]
[330711858,1719724238813,-153.0,0.000164,2]
[330711860,1719724238822,-153.0,0.000164,2]
[330711862,1719724238831,-153.0,0.000164,2]
[330711864,1719724238841,-206.0005558,0.000164,2]
[330711866,1719724238850,-153.0,0.000164,2]
[330711868,1719724238859,-153.0,0.000164,2]
[330711871,1719724238869,-206.0005558,0.000164,2]
[330711873,1719724238878,-153.0,0.000164,2]
[330711874,1719724238887,-153.0,0.000164,2]
[330711877,1719724238897,-150.0,0.00016429,2]
[330711878,1719724238906,-10000.0,0.00016436,2]
[330711880,1719724238916,-8695.91252097,0.00016436,2]
[330711882,1719724238925,-501.12905021,0.00016438,2]
[330711884,1719724238935,-568.43,0.00016438,2]
[330711886,1719724238944,-500.0,0.00016438,2]
[330711888,1719724238953,-500.0,0.00016438,2]
[330711890,1719724238963,-500.0,0.00016438,2]
[330711892,1719724238972,-575.38,0.00016438,2]
[330711894,1719724238982,-613.6880139,0.00016438,2]
[330711896,1719724238991,-554.93,0.00016438,2]
[330711898,1719724239001,-500.0,0.00016438,2]
[330711900,1719724239010,-514.89319093,0.00016438,2]
[330711902,1719724239020,-500.0,0.00016438,2]
[330711904,1719724239029,-500.0,0.00016438,2]
[330711906,1719724239040,-500.0,0.00016438,2]
[330711908,1719724239054,-777.81,0.00016438,2]
[330711910,1719724239064,-511.4377051,0.00016438,2]
[330711912,1719724239075,-871.82,0.00016438,2]
[330711914,1719724239084,-645.3307828,0.00016438,2]
[330711916,1719724239095,-500.0,0.00016438,2]
[330711918,1719724239105,-1587.36,0.00016438,2]
[330711920,1719724239115,-500.0,0.00016438,2]
[330711922,1719724239128,-500.0,0.00016438,2]
[330711924,1719724239138,-500.0,0.00016438,2]
[330711926,1719724239147,-586.18,0.00016438,2]
[330711928,1719724239157,-188.18270437,0.00016438,2]
[330711930,1719724239167,-507.09445584,0.00016438,2]
[330711945,1719724239299,-500.0,0.00016438,2]
[330711947,1719724239308,-500.0,0.00016438,2]
[330711949,1719724239318,-500.0,0.00016438,2]
[330711951,1719724239327,-1023.61,0.00016438,2]
[330711953,1719724239337,-500.0,0.00016438,2]
[330711955,1719724239346,-500.0,0.00016438,2]
[330711957,1719724239355,-500.0,0.00016438,2]
[330711959,1719724239364,-500.0,0.00016438,2]
[330711961,1719724239373,-500.0,0.00016438,2]
[330711963,1719724239383,-500.0,0.00016438,2]
[330711965,1719724239392,-500.0,0.00016438,2]
[330711967,1719724239401,-500.09,0.00016438,2]
[330711969,1719724239411,-500.0,0.00016438,2]
[330711971,1719724239420,-556.41,0.00016438,2]
[330711972,1719724239431,-520.98,0.00016438,2]
[330711975,1719724239441,-500.0,0.00016438,2]
[330711977,1719724239451,-500.0,0.00016438,2]
[330711978,1719724239460,-500.0,0.00016438,2]
[330711980,1719724239469,-500.0,0.00016438,2]
[330711982,1719724239479,-500.0,0.00016438,2]
[330711984,1719724239490,-500.0,0.00016438,2]
[330711987,1719724239500,-500.0,0.00016438,2]
[330711988,1719724239509,-500.0,0.00016438,2]
[330711990,1719724239519,-505.0003678,0.00016438,2]
[330711992,1719724239528,-508.94061713,0.00016438,2]
[330711994,1719724239538,-766.92,0.00016438,2]
[330711996,1719724239548,-500.0,0.00016438,2]
[330711997,1719724239558,-500.0,0.00016438,2]
[330711998,1719724239567,-1380.11,0.00016438,2]
[330711999,1719724239576,-500.0,0.00016438,2]
[330712000,1719724239585,-500.0,0.00016438,2]
[330712001,1719724239595,-500.0,0.00016438,2]
[330712002,1719724239604,-500.0,0.00016438,2]
[330712003,1719724239613,-500.0,0.00016438,2]
[330712004,1719724239622,-24536.05,0.00016438,2]
[330712005,1719724239633,-500.0,0.00016438,2]
[330712006,1719724239643,-500.0,0.00016438,2]
[330712007,1719724239652,-611.49,0.00016438,2]
[330712008,1719724239662,-500.0,0.00016438,2]
[330712009,1719724239671,-500.0,0.00016438,2]
[330712010,1719724239682,-874.36,0.00016438,2]
[330712011,1719724239692,-500.0,0.00016438,2]
[330712012,1719724239702,-500.0,0.00016438,2]
[330712013,1719724239711,-504.59121012,0.00016438,2]
[330712014,1719724239721,-564.24,0.00016438,2]
[330712015,1719724239731,-500.0,0.00016438,2]
[330712016,1719724239740,-814.4,0.00016438,2]
[330712017,1719724239749,-500.0,0.00016438,2]
[330712018,1719724239760,-1844.19,0.00016438,2]
[330712019,1719724239770,-500.0,0.00016438,2]
[330712020,1719724239780,-500.0,0.00016438,2]
[330712022,1719724239790,-583.65,0.00016438,2]
[330712024,1719724239800,-500.0,0.00016438,2]
[330712026,1719724239810,-500.0,0.00016438,2]
[330712028,1719724239820,-500.0,0.00016438,2]
[330712029,1719724239830,-887.91,0.00016438,2]
[330712031,1719724239839,-828.33,0.00016438,2]
[330712033,1719724239849,-500.0,0.00016438,2]
[330712035,1719724239858,-500.0,0.00016438,2]
[330712037,1719724239868,-2733.48,0.00016438,2]
[330712039,1719724239878,-501.61298699,0.00016438,2]
[330712041,1719724239887,-500.0,0.00016438,2]
[330712043,1719724239897,-500.0,0.00016438,2]
[330712045,1719724239907,-500.0,0.00016438,2]
[330712047,1719724239917,-500.0,0.00016438,2]
[330712049,1719724239927,-501.29030991,0.00016438,2]
[330712051,1719724239936,-500.0,0.00016438,2]
[330712053,1719724239946,-320.90698252,0.00016438,2]
[330712055,1719724239955,-500.0,0.00016438,2]
[330712057,1719724239965,-520.88959233,0.00016438,2]
[330712059,1719724239975,-509.77482491,0.00016438,2]
[330712061,1719724239985,-500.0,0.00016438,2]
[330712063,1719724239994,-500.0,0.00016438,2]
[330712065,1719724240004,-500.0,0.00016438,2]
[330712067,1719724240014,-503.84856482,0.00016438,2]
[330712069,1719724240024,-632.59,0.00016438,2]
[330712071,1719724240034,-500.0,0.00016438,2]
[330712073,1719724240046,-500.0,0.00016438,2]
[330712075,1719724240056,-500.0,0.00016438,2]
[330712077,1719724240066,-500.0,0.00016438,2]
[330712079,1719724240076,-736.09,0.00016438,2]
[330712081,1719724240087,-500.0,0.00016438,2]
[330712083,1719724240096,-500.0,0.00016438,2]
[330712085,1719724240106,-500.0,0.00016438,2]
[330712087,1719724240116,-500.0,0.00016438,2]
[330712089,1719724240128,-502.51886027,0.00016438,2]
[330712091,1719724240138,-500.0,0.00016438,2]
[330712093,1719724240147,-500.0,0.00016438,2]
[330712095,1719724240157,-500.0,0.00016438,2]
[330712097,1719724240166,-500.0,0.00016438,2]
[330712099,1719724240176,-500.0,0.00016438,2]
[330712101,1719724240186,-500.0,0.00016438,2]
[330712103,1719724240195,-500.0,0.00016438,2]
[330712105,1719724240204,-500.0,0.00016438,2]
[330712107,1719724240214,-500.0,0.00016438,2]
[330712110,1719724240224,-500.0,0.00016438,2]
[330712112,1719724240233,-596.32,0.00016438,2]
[330712114,1719724240242,-1914.45,0.00016438,2]
[330712116,1719724240251,-500.0,0.00016438,2]
[330712119,1719724240261,-500.0,0.00016438,2]
[330712122,1719724240270,-1449.02,0.00016438,2]
[330712125,1719724240280,-524.30153872,0.00016438,2]
[330712127,1719724240290,-835.69,0.00016438,2]
[330712128,1719724240299,-500.0,0.00016438,2]
[330712129,1719724240310,-976.84,0.00016438,2]
[330712130,1719724240319,-500.78,0.00016438,2]
[330712131,1719724240329,-500.0,0.00016438,2]
[330712132,1719724240338,-500.0,0.00016438,2]
[330712133,1719724240347,-555.92,0.00016438,2]
[330712134,1719724240357,-623.71,0.00016438,2]
[330712135,1719724240366,-500.0,0.00016438,2]
[330712136,1719724240376,-921.79,0.00016438,2]
[330712137,1719724240387,-500.0,0.00016438,2]
[330712138,1719724240397,-502.76565142,0.00016438,2]
[330712139,1719724240406,-503.66349811,0.00016438,2]
[330712140,1719724240415,-1449.78,0.00016438,2]
[330712141,1719724240425,-610.51,0.00016438,2]
[330712142,1719724240435,-501.71861451,0.00016438,2]
[330712143,1719724240444,-500.0,0.00016438,2]
[330712144,1719724240454,-843.42,0.00016438,2]
[330712145,1719724240464,-753.97,0.00016438,2]
[330712146,1719724240473,-503.72213045,0.00016438,2]
[330712147,1719724240483,-503.05908995,0.00016438,2]
[330712149,1719724240492,-500.0,0.00016438,2]
[330712150,1719724240502,-1218.71,0.00016438,2]
[330712151,1719724240512,-500.0,0.00016438,2]
[330712152,1719724240522,-500.0,0.00016438,2]
[330712153,1719724240532,-500.0,0.00016438,2]
[330712154,1719724240541,-500.0,0.00016438,2]
[330712155,1719724240550,-518.62875156,0.00016438,2]
[330712156,1719724240559,-503.13922847,0.00016438,2]
[330712157,1719724240569,-500.0,0.00016438,2]
[330712158,1719724240579,-502.25486013,0.00016438,2]
[330712159,1719724240589,-3739.56,0.00016438,2]
[330712161,1719724240598,-500.0,0.00016438,2]
[330712163,1719724240607,-500.0,0.00016438,2]
[330712164,1719724240618,-597.78,0.00016438,2]
[330712165,1719724240627,-500.0,0.00016438,2]
[330712167,1719724240637,-500.0,0.00016438,2]
[330712168,1719724240646,-500.0,0.00016438,2]
[330712169,1719724240656,-500.0,0.00016438,2]
[330712170,1719724240666,-210.84684265,0.00016438,2]
[330712171,1719724240676,-500.0,0.00016438,2]
[330712172,1719724240686,-502.53388682,0.00016438,2]
[330712173,1719724240695,-234.00245064,0.00016438,2]
[330712174,1719724240705,-713.13,0.00016438,2]
[330712175,1719724240715,-500.0,0.00016438,2]
[330712176,1719724240724,-853.57,0.00016438,2]
[330712177,1719724240734,-500.0,0.00016438,2]
[330712178,1719724240743,-500.0,0.00016438,2]
[330712179,1719724240752,-645.19,0.00016438,2]
[330712180,1719724240762,-703.9,0.00016438,2]
[330712181,1719724240771,-500.0,0.00016438,2]
[330712182,1719724240780,-259.7614997,0.00016438,2]
[330712183,1719724240790,-500.0,0.00016438,2]
[330712184,1719724240800,-613.64,0.00016438,2]
[330712185,1719724240810,-500.0,0.00016438,2]
[330712186,1719724240819,-410.26335676,0.00016438,2]
[330712187,1719724240829,-500.0,0.00016438,2]
[330712188,1719724240838,-501.72680499,0.00016438,2]
[330712189,1719724240848,-513.57,0.00016438,2]
[330712190,1719724240858,-500.0,0.00016438,2]
[330712191,1719724240869,-500.0,0.00016438,2]
[330712192,1719724240879,-500.0,0.00016438,2]
[330712194,1719724240888,-500.0,0.00016438,2]
[330712195,1719724240897,-500.0,0.00016438,2]
[330712196,1719724240907,-500.0,0.00016438,2]
[330712197,1719724240917,-500.0,0.00016438,2]
[330712198,1719724240927,-502.32933308,0.00016438,2]
[330712199,1719724240937,-728.68,0.00016438,2]
[330712200,1719724240946,-697.61,0.00016438,2]
[330712201,1719724240956,-500.15,0.00016438,2]
[330712202,1719724240965,-500.0,0.00016438,2]
[330712203,1719724240975,-502.75853814,0.00016438,2]
[330712204,1719724240984,-501.00203503,0.00016438,2]
[330712205,1719724240994,-500.0,0.00016438,2]
[330712206,1719724241004,-500.0,0.00016438,2]
[330712207,1719724241013,-506.19227959,0.00016438,2]
[330712208,1719724241023,-635.80447038,0.00016438,2]
[330712209,1719724241032,-494.74240555,0.00016438,2]
[330712210,1719724241043,-515.09824929,0.00016438,2]
[330712211,1719724241055,-777.32,0.00016438,2]
[330712212,1719724241064,-900.33,0.00016438,2]
[330712213,1719724241074,-502.68202853,0.00016438,2]
[330712214,1719724241083,-963.57,0.00016438,2]
[330712215,1719724241187,-518.6968974,0.00016438,2]
[330712216,1719724241197,-500.0,0.00016438,2]
[330712217,1719724241206,-500.0,0.00016438,2]
[330712218,1719724241215,-3242.34,0.00016438,2]
[330712219,1719724241226,-500.0,0.00016438,2]
[330712220,1719724241235,-513.74471728,0.00016438,2]
[330712221,1719724241244,-500.0,0.00016438,2]
[330712222,1719724241254,-1034.21,0.00016438,2]
[330712223,1719724241263,-490.34845535,0.00016438,2]
[330712224,1719724241272,-500.0,0.00016438,2]
[330712225,1719724241281,-3921.99,0.00016438,2]
[330712226,1719724241290,-594.27,0.00016438,2]
[330712227,1719724241300,-500.0,0.00016438,2]
[330712228,1719724241309,-500.0,0.00016438,2]
[330712229,1719724241318,-500.0,0.00016438,2]
[330712230,1719724241328,-1272.77,0.00016438,2]
[330712231,1719724241337,-500.0,0.00016438,2]
[330712232,1719724241346,-500.0,0.00016438,2]
[330712233,1719724241356,-501.7334312,0.00016438,2]
[330712234,1719724241365,-500.0,0.00016438,2]
[330712235,1719724241377,-1288.1,0.00016438,2]
[330712236,1719724241387,-2964.06,0.00016438,2]
[330712237,1719724241398,-500.0,0.00016438,2]
[330712238,1719724241408,-500.0,0.00016438,2]
[330712239,1719724241418,-2049.93,0.00016438,2]
[330712240,1719724241428,-526.18308385,0.00016438,2]
[330712241,1719724241438,-500.0,0.00016438,2]
[330712242,1719724241447,-500.0,0.00016438,2]
[330712243,1719724241459,-550.43610066,0.00016438,2]
[330712244,1719724241469,-500.0,0.00016438,2]
[330712245,1719724241478,-500.0,0.00016438,2]
[330712246,1719724241487,-500.0,0.00016438,2]
[330712247,1719724241495,-500.0,0.00016438,2]
[330712248,1719724241505,-501.5096367,0.00016438,2]
[330712249,1719724241514,-500.0,0.00016438,2]
[330712250,1719724241523,-627.36491239,0.00016438,2]
[330712251,1719724241532,-500.0,0.00016438,2]
[330712252,1719724241541,-516.65,0.00016438,2]
[330712253,1719724241550,-500.0,0.00016438,2]
[330712254,1719724241559,-642.72365021,0.00016438,2]
[330712255,1719724241569,-500.0,0.00016438,2]
[330712256,1719724241578,-500.0,0.00016438,2]
[330712257,1719724241589,-852.01,0.00016438,2]
[330712258,1719724241600,-1277.19,0.00016438,2]
[330712259,1719724241612,-1939.98,0.00016438,2]
[330712260,1719724241622,-500.0,0.00016438,2]
[330712261,1719724241633,-497.24081601,0.00016438,2]
[330712262,1719724241643,-1993.28,0.00016438,2]
[330712263,1719724241653,-509.45315943,0.00016438,2]
[330712264,1719724241663,-500.0,0.00016438,2]
[330712265,1719724241673,-500.0,0.00016438,2]
[330712266,1719724241684,-1071.78,0.00016438,2]
[330712267,1719724241693,-500.0,0.00016438,2]
[330712268,1719724241703,-500.0,0.00016438,2]
[330712269,1719724241711,-503.33884486,0.00016438,2]
[330712270,1719724241720,-500.0,0.00016438,2]
[330712271,1719724241730,-987.62,0.00016438,2]
[330712272,1719724241739,-500.0,0.00016438,2]
[330712273,1719724241748,-500.0,0.00016438,2]
[330712274,1719724241758,-500.0,0.00016438,2]
[330712275,1719724241769,-500.0,0.00016438,2]
[330712276,1719724241779,-3168.39,0.00016438,2]
[330712277,1719724241788,-500.0,0.00016438,2]
[330712278,1719724241798,-500.0,0.00016438,2]
[330712279,1719724241807,-642.22,0.00016438,2]
[330712280,1719724241816,-500.0,0.00016438,2]
[330712281,1719724241825,-550.02769491,0.00016438,2]
[330712282,1719724241834,-500.0,0.00016438,2]
[330712283,1719724241843,-370.21868496,0.00016438,2]
[330712284,1719724241852,-500.0,0.00016438,2]
[330712285,1719724241861,-760.64,0.00016438,2]
[330712286,1719724241871,-500.0,0.00016438,2]
[330712287,1719724241880,-517.27090328,0.00016438,2]
[330712288,1719724241889,-500.0,0.00016438,2]
[330712289,1719724241898,-1938.97,0.00016438,2]
[330712290,1719724241907,-699.59,0.00016438,2]
[330712291,1719724241916,-500.0,0.00016438,2]
[330712292,1719724241926,-1612.33,0.00016438,2]
[330712293,1719724241935,-352.42377064,0.00016438,2]
[330712294,1719724241944,-500.0,0.00016438,2]
[330712295,1719724241954,-500.0,0.00016438,2]
[330712296,1719724241963,-500.0,0.00016438,2]
[330712297,1719724241972,-548.5553125,0.00016438,2]
[330712298,1719724241981,-600.27,0.00016438,2]
[330712299,1719724241990,-500.0,0.00016438,2]
[330712300,1719724241999,-500.0,0.00016438,2]
[330712301,1719724242009,-746.24,0.00016438,2]
[330712302,1719724242018,-1047.47,0.00016438,2]
[330712303,1719724242027,-722.7,0.00016438,2]
[330712304,1719724242036,-500.0,0.00016438,2]
[330712305,1719724242049,-11596.27,0.00016438,2]
[330712306,1719724242061,-1075.04,0.00016438,2]
[330712307,1719724242071,-500.0,0.00016438,2]
[330712308,1719724242080,-500.0,0.00016438,2]
[330712309,1719724242090,-600.36,0.00016438,2]
[330712310,1719724242099,-962.72,0.00016438,2]
[330712311,1719724242109,-1318.82,0.00016438,2]
[330712312,1719724242118,-500.0,0.00016438,2]
[330712313,1719724242129,-500.0,0.00016438,2]
[330712314,1719724242139,-500.0,0.00016438,2]
[330712315,1719724242148,-510.23074069,0.00016438,2]
[330712316,1719724242157,-500.0,0.00016438,2]
[330712317,1719724242167,-2086.46,0.00016438,2]
[330712318,1719724242176,-356.35071583,0.00016438,2]
[330712319,1719724242185,-500.0,0.00016438,2]
[330712320,1719724242194,-1103.87,0.00016438,2]
[330712321,1719724242203,-527.3405985,0.00016438,2]
[330712322,1719724242211,-500.0,0.00016438,2]
[330712323,1719724242221,-605.53090476,0.00016438,2]
[330712324,1719724242231,-500.0,0.00016438,2]
[330712325,1719724242240,-151.0,0.00016438,2]
[330712326,1719724242249,-949.62,0.00016438,2]
[330712327,1719724242258,-500.0,0.00016438,2]
[330712328,1719724242268,-500.0,0.00016438,2]
[330712329,1719724242277,-1113.83,0.00016438,2]
[330712330,1719724242286,-3815.59,0.00016438,2]
[330712331,1719724242295,-284.42713309,0.00016438,2]
[330712332,1719724242304,-631.25,0.00016438,2]
[330712333,1719724242314,-500.0,0.00016438,2]
[330712334,1719724242323,-832.52,0.00016438,2]
[330712335,1719724242332,-500.0,0.00016438,2]
[330712336,1719724242341,-500.0,0.00016438,2]
[330712337,1719724242350,-500.0,0.00016438,2]
[330712338,1719724242359,-572.42,0.00016438,2]
[330712339,1719724242368,-501.53968215,0.00016438,2]
[330712340,1719724242377,-500.0,0.00016438,2]
[330712341,1719724242386,-500.0,0.00016438,2]
[330712342,1719724242395,-501.82408422,0.00016438,2]
[330712343,1719724242404,-1895.02,0.00016438,2]
[330712344,1719724242414,-503.08253813,0.00016438,2]
[330712345,1719724242423,-500.0,0.00016438,2]
[330712346,1719724242433,-504.21438087,0.00016438,2]
[330712347,1719724242443,-711.91,0.00016438,2]
[330712348,1719724242452,-694.99,0.00016438,2]
[330712349,1719724242461,-500.0,0.00016438,2]
[330712350,1719724242470,-500.0,0.00016438,2]
[330712351,1719724242480,-1567.52,0.00016438,2]
[330712352,1719724242488,-506.29147008,0.00016438,2]
[330712353,1719724242498,-289.60180545,0.00016438,2]
[330712354,1719724242507,-3914.59,0.00016438,2]
[330712355,1719724242516,-500.0,0.00016438,2]
[330712356,1719724242525,-558.6252966,0.00016438,2]
[330712357,1719724242535,-500.0,0.00016438,2]
[330712358,1719724242543,-500.0,0.00016438,2]
[330712359,1719724242552,-1371.68,0.00016438,2]
[330712360,1719724242561,-2593.85,0.00016438,2]
[330712361,1719724242570,-598.33,0.00016438,2]
[330712362,1719724242580,-500.0,0.00016438,2]
[330712363,1719724242589,-508.18186603,0.00016438,2]
[330712364,1719724242598,-18335.36,0.00016438,2]
[330712365,1719724242607,-500.0,0.00016438,2]
[330712366,1719724242616,-500.0,0.00016438,2]
[330712367,1719724242625,-500.0,0.00016438,2]
[330712368,1719724242636,-500.0,0.00016438,2]
[330712369,1719724242645,-506.07113532,0.00016438,2]
[330712370,1719724242654,-500.0,0.00016438,2]
[330712371,1719724242663,-500.0,0.00016438,2]
[330712372,1719724242672,-2504.72,0.00016438,2]
[330712373,1719724242682,-1754.19,0.00016438,2]
[330712374,1719724242691,-500.0,0.00016438,2]
[330712375,1719724242700,-983.59,0.00016438,2]
[330712376,1719724242709,-504.1464877,0.00016438,2]
[330712377,1719724242718,-4930.47,0.00016438,2]
[330712378,1719724242728,-500.0,0.00016438,2]
[330712379,1719724242737,-651.93,0.00016438,2]
[330712380,1719724242746,-500.0,0.00016438,2]
[330712381,1719724242755,-560.18,0.00016438,2]
[330712382,1719724242764,-500.0,0.00016438,2]
[330712383,1719724242773,-838.23,0.00016438,2]
[330712384,1719724242783,-8820.53,0.00016438,2]
[330712385,1719724242878,-500.67,0.00016438,2]
[330712386,1719724242888,-500.0,0.00016438,2]
[330712387,1719724242897,-500.0,0.00016438,2]
[330712388,1719724242906,-500.0,0.00016438,2]
[330712389,1719724242916,-503.58440114,0.00016438,2]
[330712390,1719724242926,-1706.55,0.00016438,2]
[330712391,1719724242936,-2440.34,0.00016438,2]
[330712392,1719724242945,-4503.8,0.00016438,2]
[330712393,1719724242954,-7492.56,0.00016438,2]
[330712394,1719724242963,-613.12,0.00016438,2]
[330712395,1719724242972,-500.0,0.00016438,2]
[330712396,1719724242983,-500.0,0.00016438,2]
[330712397,1719724242993,-500.0,0.00016438,2]
[330712398,1719724243002,-500.0,0.00016438,2]
[330712399,1719724243012,-500.0,0.00016438,2]
[330712400,1719724243021,-500.0,0.00016438,2]
[330712401,1719724243031,-552.23,0.00016438,2]
[330712402,1719724243040,-870.95,0.00016438,2]
[330712403,1719724243054,-500.0,0.00016438,2]
[330712404,1719724243064,-1094.29,0.00016438,2]
[330712405,1719724243073,-500.0,0.00016438,2]
[330712406,1719724243082,-1338.55,0.00016438,2]
[330712407,1719724243093,-620.28,0.00016438,2]
[330712408,1719724243102,-500.0,0.00016438,2]
[330712409,1719724243111,-507.55763966,0.00016438,2]
[330712410,1719724243121,-771.69,0.00016438,2]
[330712411,1719724243131,-500.0,0.00016438,2]
[330712412,1719724243141,-1224.86,0.00016438,2]
[330712413,1719724243150,-356.11122265,0.00016438,2]
[330712414,1719724243159,-1265.2,0.00016438,2]